[Event "Late-Titled-Tuesday-Blitz-January-30-2024"]
[Site "Chess.com"]
[Date "2024.01.30"]
[Round "4"]
[White "dropstoneDP"]
[Black "annacramling"]
[Result "1-0"]
[WhiteElo "3039"]
[BlackElo "2121"]
[TimeControl "180+1"]
[EndTime "14:38:28 PST"]
[Termination "dropstoneDP won on time"]

1. e4 {[%clk 0:03:00.9]} 1... c5 {[%clk 0:02:58.9]} 2. Nf3 {[%clk 0:02:55.3]}
2... e6 {[%clk 0:02:57.9]} 3. d4 {[%clk 0:02:55.8]} 3... cxd4 {[%clk 0:02:58]}
4. Nxd4 {[%clk 0:02:56.7]} 4... Nf6 {[%clk 0:02:57]} 5. Nc3 {[%clk 0:02:56.7]}
5... Nc6 {[%clk 0:02:54.6]} 6. Ndb5 {[%clk 0:02:56.9]} 6... d6 {[%clk 0:02:55]}
7. Bf4 {[%clk 0:02:56.4]} 7... e5 {[%clk 0:02:55.5]} 8. Bg5 {[%clk 0:02:56.9]}
8... a6 {[%clk 0:02:55.4]} 9. Na3 {[%clk 0:02:57.4]} 9... b5 {[%clk 0:02:53.1]}
10. Nd5 {[%clk 0:02:57.8]} 10... Be7 {[%clk 0:02:53.3]} 11. Bxf6 {[%clk
0:02:57.7]} 11... Bxf6 {[%clk 0:02:54.2]} 12. c3 {[%clk 0:02:57.8]} 12... Bg5
{[%clk 0:02:54.2]} 13. Nc2 {[%clk 0:02:58]} 13... O-O {[%clk 0:02:49.5]} 14. a4
{[%clk 0:02:39.3]} 14... bxa4 {[%clk 0:02:48.1]} 15. Rxa4 {[%clk 0:02:40.2]}
15... a5 {[%clk 0:02:48]} 16. Bc4 {[%clk 0:02:38.5]} 16... Be6 {[%clk
0:02:45.6]} 17. O-O {[%clk 0:02:36.8]} 17... Ne7 {[%clk 0:02:43]} 18. Qd3 {[%clk
0:02:34.6]} 18... Rb8 {[%clk 0:02:02.9]} 19. b4 {[%clk 0:02:30.8]} 19... axb4
{[%clk 0:01:35]} 20. Ncxb4 {[%clk 0:02:31.7]} 20... Qd7 {[%clk 0:01:28.4]} 21.
Rfa1 {[%clk 0:02:24.7]} 21... Nxd5 {[%clk 0:00:45.7]} 22. Bxd5 {[%clk
0:02:22.9]} 22... Bxd5 {[%clk 0:00:36.7]} 23. Nxd5 {[%clk 0:02:20.8]} 23... Rb2
{[%clk 0:00:28]} 24. Ra8 {[%clk 0:02:12.7]} 24... g6 {[%clk 0:00:21.6]} 25.
Rxf8+ {[%clk 0:02:04.7]} 25... Kxf8 {[%clk 0:00:21.8]} 26. Qg3 {[%clk
0:01:58.9]} 26... Qb7 {[%clk 0:00:12.3]} 27. Rf1 {[%clk 0:01:49.3]} 27... Bd2
{[%clk 0:00:09.8]} 28. Qd3 {[%clk 0:01:31.7]} 28... Qb5 {[%clk 0:00:09.9]} 29.
Qxb5 {[%clk 0:01:30.9]} 29... Rxb5 {[%clk 0:00:09.8]} 30. Rd1 {[%clk 0:01:29.7]}
30... Rb3 {[%clk 0:00:03.2]} 31. c4 {[%clk 0:00:50.8]} 31... Rb2 {[%clk
0:00:03.3]} 32. Kf1 {[%clk 0:00:51.3]} 32... Rc2 {[%clk 0:00:03.6]} 33. g3
{[%clk 0:00:48.6]} 33... Ba5 {[%clk 0:00:03.4]} 34. Ra1 {[%clk 0:00:47.2]} 34...
Bc3 {[%clk 0:00:01.8]} 35. Ra8+ {[%clk 0:00:44]} 35... Kg7 {[%clk 0:00:01.8]}
36. Nxc3 {[%clk 0:00:39]} 36... Rxc3 {[%clk 0:00:02.7]} 37. Rc8 {[%clk
0:00:39.1]} 37... h5 {[%clk 0:00:02.3]} 38. h4 {[%clk 0:00:39.2]} 38... f5
{[%clk 0:00:02.1]} 39. exf5 {[%clk 0:00:37.9]} 39... gxf5 {[%clk 0:00:02.6]} 40.
Rc6 {[%clk 0:00:38.5]} 1-0

[Event "Late-Titled-Tuesday-Blitz-January-30-2024"]
[Site "Chess.com"]
[Date "2024.01.30"]
[Round "4"]
[White "OPQRC"]
[Black "TheAlienParty"]
[Result "1-0"]
[WhiteElo "2551"]
[BlackElo "2380"]
[TimeControl "180+1"]
[EndTime "14:38:28 PST"]
[Termination "OPQRC won by checkmate"]

1. e4 {[%clk 0:02:51]} 1... e5 {[%clk 0:02:58.9]} 2. Nf3 {[%clk 0:02:48.9]} 2...
Nc6 {[%clk 0:02:58.1]} 3. d4 {[%clk 0:02:48.9]} 3... exd4 {[%clk 0:02:57.6]} 4.
Nxd4 {[%clk 0:02:49.8]} 4... Bc5 {[%clk 0:02:56.6]} 5. Nb3 {[%clk 0:02:48.7]}
5... Bb6 {[%clk 0:02:55.7]} 6. Nc3 {[%clk 0:02:48.4]} 6... Nf6 {[%clk
0:02:54.7]} 7. Qe2 {[%clk 0:02:49]} 7... Nd4 {[%clk 0:02:51.6]} 8. Qd3 {[%clk
0:02:23.7]} 8... Nxb3 {[%clk 0:02:46.4]} 9. axb3 {[%clk 0:02:24.6]} 9... O-O
{[%clk 0:02:45.6]} 10. Bg5 {[%clk 0:02:21.8]} 10... h6 {[%clk 0:02:44.9]} 11.
Bh4 {[%clk 0:02:17.4]} 11... Qe7 {[%clk 0:02:18.6]} 12. f3 {[%clk 0:02:03.7]}
12... c6 {[%clk 0:02:14.8]} 13. O-O-O {[%clk 0:01:57.3]} 13... Rd8 {[%clk
0:02:13.1]} 14. Kb1 {[%clk 0:01:51.9]} 14... Bc7 {[%clk 0:02:06.3]} 15. g4
{[%clk 0:01:46.9]} 15... b5 {[%clk 0:01:41.2]} 16. Bg3 {[%clk 0:01:30.1]} 16...
Bxg3 {[%clk 0:01:27]} 17. hxg3 {[%clk 0:01:31]} 17... a5 {[%clk 0:01:25.2]} 18.
g5 {[%clk 0:01:23.6]} 18... hxg5 {[%clk 0:01:24.2]} 19. f4 {[%clk 0:01:20.4]}
19... gxf4 {[%clk 0:01:07]} 20. gxf4 {[%clk 0:01:21.3]} 20... g6 {[%clk
0:01:04.6]} 21. Qh3 {[%clk 0:01:14.4]} 21... Kf8 {[%clk 0:00:56.8]} 22. Qh6+
{[%clk 0:01:13.1]} 22... Ke8 {[%clk 0:00:55]} 23. Qg7 {[%clk 0:01:07.4]} 23...
Nh5 {[%clk 0:00:43.6]} 24. Rxh5 {[%clk 0:00:38.6]} 24... gxh5 {[%clk 0:00:43]}
25. Bxb5 {[%clk 0:00:38.9]} 25... cxb5 {[%clk 0:00:19.6]} 26. Nd5 {[%clk
0:00:35.4]} 26... d6 {[%clk 0:00:07.5]} 27. Nf6+ {[%clk 0:00:28]} 27... Qxf6
{[%clk 0:00:06.1]} 28. Qxf6 {[%clk 0:00:28.9]} 28... Be6 {[%clk 0:00:04.3]} 29.
f5 {[%clk 0:00:27.6]} 29... Bc8 {[%clk 0:00:02.5]} 30. e5 {[%clk 0:00:25.8]}
30... Bb7 {[%clk 0:00:01.5]} 31. exd6 {[%clk 0:00:22.4]} 31... Rd7 {[%clk
0:00:01.2]} 32. Qh8# {[%clk 0:00:22.1]} 1-0

[Event "Late-Titled-Tuesday-Blitz-January-30-2024"]
[Site "Chess.com"]
[Date "2024.01.30"]
[Round "4"]
[White "GMBenjaminBok"]
[Black "TheCavemanChess"]
[Result "1-0"]
[WhiteElo "2938"]
[BlackElo "2683"]
[TimeControl "180+1"]
[EndTime "14:38:29 PST"]
[Termination "GMBenjaminBok won by resignation"]

1. d4 {[%clk 0:03:00.9]} 1... Nf6 {[%clk 0:02:58.7]} 2. c4 {[%clk 0:03:00.8]}
2... e6 {[%clk 0:02:59.2]} 3. Nc3 {[%clk 0:03:00.7]} 3... d5 {[%clk 0:02:59.9]}
4. cxd5 {[%clk 0:03:00.8]} 4... exd5 {[%clk 0:03:00.8]} 5. Bg5 {[%clk
0:03:00.8]} 5... Be7 {[%clk 0:03:00.8]} 6. e3 {[%clk 0:03:01.2]} 6... O-O {[%clk
0:03:01.5]} 7. Bd3 {[%clk 0:03:01.7]} 7... Re8 {[%clk 0:03:02.2]} 8. h3 {[%clk
0:03:01.1]} 8... h6 {[%clk 0:03:01.4]} 9. Bf4 {[%clk 0:03:01.1]} 9... c5 {[%clk
0:03:01.5]} 10. Nf3 {[%clk 0:02:59.6]} 10... Nc6 {[%clk 0:03:01.4]} 11. O-O
{[%clk 0:02:51.3]} 11... cxd4 {[%clk 0:02:45.4]} 12. exd4 {[%clk 0:02:52.2]}
12... Bd6 {[%clk 0:02:20.6]} 13. Qc1 {[%clk 0:02:37.6]} 13... Nb4 {[%clk
0:02:04.6]} 14. Bb5 {[%clk 0:02:28.7]} 14... Re7 {[%clk 0:01:55.6]} 15. a3
{[%clk 0:02:21.6]} 15... Nc6 {[%clk 0:01:55.5]} 16. Bxc6 {[%clk 0:02:19.6]}
16... bxc6 {[%clk 0:01:55.7]} 17. Ne5 {[%clk 0:02:15]} 17... Qe8 {[%clk
0:01:48.4]} 18. Re1 {[%clk 0:02:08.3]} 18... c5 {[%clk 0:01:40.6]} 19. Qd2
{[%clk 0:01:48.4]} 19... cxd4 {[%clk 0:00:46.4]} 20. Qxd4 {[%clk 0:01:49.3]}
20... Bb7 {[%clk 0:00:46.6]} 21. Nf3 {[%clk 0:01:44.2]} 21... Bxf4 {[%clk
0:00:45.5]} 22. Qxf4 {[%clk 0:01:45.1]} 22... Ne4 {[%clk 0:00:43.4]} 23. Re3
{[%clk 0:01:29.2]} 23... Rc8 {[%clk 0:00:28.6]} 24. Rae1 {[%clk 0:01:17.3]}
24... Re6 {[%clk 0:00:24.3]} 25. Nd4 {[%clk 0:01:12.5]} 25... Rf6 {[%clk
0:00:24.6]} 26. Qh4 {[%clk 0:00:37.3]} 26... Qf8 {[%clk 0:00:25]} 27. f3 {[%clk
0:00:33.1]} 27... Nxc3 {[%clk 0:00:25]} 28. bxc3 {[%clk 0:00:31.3]} 28... Qxa3
{[%clk 0:00:24.6]} 29. Qg4 {[%clk 0:00:22.9]} 29... Rf8 {[%clk 0:00:23]} 30. Nf5
{[%clk 0:00:21.6]} 30... Rg6 {[%clk 0:00:16.7]} 31. Ne7+ {[%clk 0:00:21.3]}
31... Kh7 {[%clk 0:00:17.6]} 32. Nxg6 {[%clk 0:00:21.6]} 32... fxg6 {[%clk
0:00:18.5]} 33. Qd7 {[%clk 0:00:19.1]} 33... Bc8 {[%clk 0:00:14.7]} 34. Qe7
{[%clk 0:00:18.9]} 34... Qxe7 {[%clk 0:00:14.2]} 35. Rxe7 {[%clk 0:00:19.8]}
35... a6 {[%clk 0:00:14.5]} 36. Rc7 {[%clk 0:00:19.6]} 36... Rg8 {[%clk
0:00:12.8]} 37. Re5 {[%clk 0:00:18.8]} 37... Bf5 {[%clk 0:00:13]} 38. g4 {[%clk
0:00:18.3]} 38... Bc2 {[%clk 0:00:10.9]} 39. Rxd5 {[%clk 0:00:18.2]} 39... Re8
{[%clk 0:00:11.5]} 40. Rdd7 {[%clk 0:00:17.6]} 1-0

[Event "Late-Titled-Tuesday-Blitz-January-30-2024"]
[Site "Chess.com"]
[Date "2024.01.30"]
[Round "4"]
[White "cthulhuuu"]
[Black "BigAl"]
[Result "1-0"]
[WhiteElo "2391"]
[BlackElo "2528"]
[TimeControl "180+1"]
[EndTime "14:38:31 PST"]
[Termination "cthulhuuu won by resignation"]

1. e4 {[%clk 0:03:00]} 1... c6 {[%clk 0:02:00.2]} 2. d3 {[%clk 0:02:58.8]} 2...
d5 {[%clk 0:02:01]} 3. Nd2 {[%clk 0:02:58.6]} 3... g6 {[%clk 0:02:01.6]} 4. g3
{[%clk 0:02:58.6]} 4... Bg7 {[%clk 0:02:02.5]} 5. Bg2 {[%clk 0:02:59]} 5... e5
{[%clk 0:02:03.4]} 6. Ngf3 {[%clk 0:02:59.2]} 6... Ne7 {[%clk 0:02:04.3]} 7. O-O
{[%clk 0:02:59.1]} 7... O-O {[%clk 0:02:05.2]} 8. c3 {[%clk 0:02:58]} 8... Nd7
{[%clk 0:02:00.9]} 9. a4 {[%clk 0:02:56.7]} 9... Nc5 {[%clk 0:01:45.9]} 10. Qe2
{[%clk 0:02:54.9]} 10... dxe4 {[%clk 0:01:42.5]} 11. dxe4 {[%clk 0:02:54.2]}
11... a5 {[%clk 0:01:40.7]} 12. Nc4 {[%clk 0:02:52.5]} 12... Qc7 {[%clk
0:01:40.9]} 13. Be3 {[%clk 0:02:47.1]} 13... Ne6 {[%clk 0:01:39.7]} 14. Bb6
{[%clk 0:02:35.9]} 14... Qb8 {[%clk 0:01:39.7]} 15. Rfd1 {[%clk 0:02:26.2]}
15... h6 {[%clk 0:01:38.5]} 16. Nxa5 {[%clk 0:01:59.3]} 16... f5 {[%clk
0:01:26.4]} 17. Nc4 {[%clk 0:01:59.1]} 17... f4 {[%clk 0:01:26.2]} 18. Nd6
{[%clk 0:01:34.9]} 18... g5 {[%clk 0:01:16.1]} 19. Bh3 {[%clk 0:01:34.5]} 19...
Nc7 {[%clk 0:01:02.2]} 20. Nxc8 {[%clk 0:01:17.4]} 20... Nxc8 {[%clk 0:01:01.7]}
21. Bc5 {[%clk 0:01:17.8]} 21... Re8 {[%clk 0:00:56.8]} 22. Nxg5 {[%clk
0:01:09.4]} 22... hxg5 {[%clk 0:00:42.6]} 23. Qh5 {[%clk 0:01:09.3]} 23... Ne7
{[%clk 0:00:33.9]} 24. Rd7 {[%clk 0:01:02.8]} 24... Bf6 {[%clk 0:00:16.8]} 25.
Bxe7 {[%clk 0:00:52.5]} 25... Rxe7 {[%clk 0:00:16.8]} 26. Qg6+ {[%clk
0:00:52.4]} 26... Rg7 {[%clk 0:00:15.5]} 27. Qxf6 {[%clk 0:00:50.3]} 27... Qf8
{[%clk 0:00:13.5]} 28. Qxf8+ {[%clk 0:00:42.4]} 28... Rxf8 {[%clk 0:00:13.2]}
29. Rad1 {[%clk 0:00:39.4]} 29... fxg3 {[%clk 0:00:08.1]} 30. hxg3 {[%clk
0:00:39.2]} 30... Rff7 {[%clk 0:00:07.1]} 31. Rd8+ {[%clk 0:00:34.5]} 31... Kh7
{[%clk 0:00:07.6]} 32. Bf5+ {[%clk 0:00:34.6]} 32... Kh6 {[%clk 0:00:05.6]} 33.
Rh8+ {[%clk 0:00:32.1]} 33... Rh7 {[%clk 0:00:06.2]} 34. Bxh7 {[%clk 0:00:32.1]}
1-0

[Event "Late-Titled-Tuesday-Blitz-January-30-2024"]
[Site "Chess.com"]
[Date "2024.01.30"]
[Round "4"]
[White "FairChess_on_YouTube"]
[Black "Eduard_Limonov"]
[Result "1-0"]
[WhiteElo "3093"]
[BlackElo "2878"]
[TimeControl "180+1"]
[EndTime "14:38:35 PST"]
[Termination "FairChess_on_YouTube won on time"]

1. e4 {[%clk 0:03:00.9]} 1... c5 {[%clk 0:02:58.9]} 2. Nf3 {[%clk 0:03:00.7]}
2... e6 {[%clk 0:02:58.3]} 3. d4 {[%clk 0:03:01.2]} 3... cxd4 {[%clk 0:02:59.2]}
4. Nxd4 {[%clk 0:03:01.8]} 4... Nf6 {[%clk 0:02:59.8]} 5. Nc3 {[%clk 0:03:01.7]}
5... Nc6 {[%clk 0:03:00.3]} 6. a3 {[%clk 0:03:00.2]} 6... Be7 {[%clk 0:02:45.1]}
7. Be2 {[%clk 0:02:56.8]} 7... O-O {[%clk 0:02:43.9]} 8. O-O {[%clk 0:02:56.7]}
8... d6 {[%clk 0:02:33]} 9. Be3 {[%clk 0:02:56.1]} 9... Bd7 {[%clk 0:02:28]} 10.
Kh1 {[%clk 0:02:55.2]} 10... a6 {[%clk 0:02:25.1]} 11. f4 {[%clk 0:02:54.7]}
11... Nxd4 {[%clk 0:02:24.6]} 12. Bxd4 {[%clk 0:02:55]} 12... Bc6 {[%clk
0:02:24.3]} 13. Qd3 {[%clk 0:02:52.5]} 13... Rc8 {[%clk 0:02:13.2]} 14. Rad1
{[%clk 0:02:52.3]} 14... Qc7 {[%clk 0:01:56]} 15. Qg3 {[%clk 0:02:51.9]} 15...
b5 {[%clk 0:01:38.2]} 16. e5 {[%clk 0:02:50.5]} 16... dxe5 {[%clk 0:01:36.6]}
17. Bxe5 {[%clk 0:02:51.4]} 17... Qb7 {[%clk 0:01:33.1]} 18. f5 {[%clk
0:02:51.3]} 18... b4 {[%clk 0:00:49]} 19. axb4 {[%clk 0:02:46.4]} 19... Qxb4
{[%clk 0:00:49.9]} 20. Bxa6 {[%clk 0:02:06.7]} 20... Ra8 {[%clk 0:00:41.3]} 21.
Bd3 {[%clk 0:02:05.8]} 21... Qg4 {[%clk 0:00:32.8]} 22. fxe6 {[%clk 0:02:01.6]}
22... fxe6 {[%clk 0:00:16.3]} 23. Rxf6 {[%clk 0:01:59]} 23... Bxg2+ {[%clk
0:00:16.5]} 24. Kg1 {[%clk 0:01:38.9]} 24... Bc5+ {[%clk 0:00:15.9]} 25. Kxg2
{[%clk 0:01:39.1]} 25... Qxg3+ {[%clk 0:00:16.1]} 26. hxg3 {[%clk 0:01:35.3]}
26... gxf6 {[%clk 0:00:16.3]} 27. Ne4 {[%clk 0:01:35.8]} 27... Be7 {[%clk
0:00:12.1]} 28. Bc3 {[%clk 0:01:35.6]} 28... f5 {[%clk 0:00:10.8]} 29. Nd2
{[%clk 0:01:35.6]} 29... Bf6 {[%clk 0:00:09.7]} 30. Bxf6 {[%clk 0:01:33.6]}
30... Rxf6 {[%clk 0:00:10.6]} 31. b4 {[%clk 0:01:34.2]} 31... Rb8 {[%clk
0:00:09.1]} 32. b5 {[%clk 0:01:34.2]} 32... e5 {[%clk 0:00:07.7]} 33. Rf1 {[%clk
0:01:34]} 33... e4 {[%clk 0:00:05.5]} 34. Bxe4 {[%clk 0:01:10.6]} 34... Rxb5
{[%clk 0:00:05.3]} 35. Bd3 {[%clk 0:01:11.3]} 35... Rc5 {[%clk 0:00:03.1]} 36.
Nb3 {[%clk 0:01:10.6]} 36... Re5 {[%clk 0:00:03.2]} 37. Nd4 {[%clk 0:01:10.6]}
37... Kg7 {[%clk 0:00:02.4]} 38. Nxf5+ {[%clk 0:01:10.4]} 38... Kf8 {[%clk
0:00:02.8]} 39. Rf4 {[%clk 0:01:08.2]} 39... Ra5 {[%clk 0:00:02.7]} 40. Kf3
{[%clk 0:01:08.4]} 40... h5 {[%clk 0:00:02.3]} 41. Kg2 {[%clk 0:01:06.5]} 41...
Rc5 {[%clk 0:00:01.8]} 42. Kh3 {[%clk 0:01:06.7]} 42... Ra5 {[%clk 0:00:01.6]}
43. Kh4 {[%clk 0:01:07.1]} 43... Rc5 {[%clk 0:00:01.4]} 44. Kxh5 {[%clk
0:01:07.5]} 44... Rf7 {[%clk 0:00:01.7]} 45. g4 {[%clk 0:01:05.9]} 45... Rh7+
{[%clk 0:00:01.7]} 46. Kg6 {[%clk 0:01:05.7]} 46... Rf7 {[%clk 0:00:02.1]} 47.
Rd4 {[%clk 0:01:02.2]} 47... Rc6+ {[%clk 0:00:02.2]} 48. Kg5 {[%clk 0:01:02.6]}
48... Ra7 {[%clk 0:00:01.8]} 49. Bc4 {[%clk 0:01:00.6]} 1-0

[Event "Late-Titled-Tuesday-Blitz-January-30-2024"]
[Site "Chess.com"]
[Date "2024.01.30"]
[Round "4"]
[White "Perecke"]
[Black "K_A_S_T_O_R"]
[Result "0-1"]
[WhiteElo "2601"]
[BlackElo "2910"]
[TimeControl "180+1"]
[EndTime "14:38:35 PST"]
[Termination "K_A_S_T_O_R won by resignation"]

1. e4 {[%clk 0:02:14.6]} 1... c5 {[%clk 0:02:58.5]} 2. Nf3 {[%clk 0:02:14.9]}
2... d6 {[%clk 0:02:58.9]} 3. d4 {[%clk 0:02:15.3]} 3... cxd4 {[%clk 0:02:59.8]}
4. Nxd4 {[%clk 0:02:16.2]} 4... Nf6 {[%clk 0:02:59.2]} 5. Nc3 {[%clk 0:02:16.9]}
5... a6 {[%clk 0:02:59.9]} 6. h3 {[%clk 0:02:16.3]} 6... e6 {[%clk 0:02:59.8]}
7. g4 {[%clk 0:02:16.1]} 7... h6 {[%clk 0:03:00.2]} 8. Bg2 {[%clk 0:02:16.3]}
8... Be7 {[%clk 0:03:00.4]} 9. O-O {[%clk 0:02:16.7]} 9... g5 {[%clk 0:02:56.2]}
10. Nde2 {[%clk 0:02:11.2]} 10... Nbd7 {[%clk 0:02:55.2]} 11. f4 {[%clk
0:02:11]} 11... gxf4 {[%clk 0:02:55.8]} 12. Nxf4 {[%clk 0:02:11.9]} 12... Ne5
{[%clk 0:02:56.3]} 13. Be3 {[%clk 0:02:10.3]} 13... b5 {[%clk 0:02:55.6]} 14. a4
{[%clk 0:02:08.5]} 14... b4 {[%clk 0:02:49.3]} 15. Na2 {[%clk 0:02:07]} 15...
Rb8 {[%clk 0:02:44.3]} 16. Ba7 {[%clk 0:02:05]} 16... Rb7 {[%clk 0:02:42.9]} 17.
Bd4 {[%clk 0:02:05.3]} 17... Bd7 {[%clk 0:02:32.4]} 18. c3 {[%clk 0:02:05]}
18... bxc3 {[%clk 0:02:28.1]} 19. Nxc3 {[%clk 0:02:00.5]} 19... Rxb2 {[%clk
0:02:16.3]} 20. Nd3 {[%clk 0:01:49.4]} 20... Nxd3 {[%clk 0:02:11.3]} 21. Qxd3
{[%clk 0:01:50.3]} 21... e5 {[%clk 0:02:02]} 22. Be3 {[%clk 0:01:47.1]} 22...
Rb3 {[%clk 0:01:53.2]} 23. Qc2 {[%clk 0:01:42.4]} 23... Rb4 {[%clk 0:01:47.6]}
24. Nd5 {[%clk 0:01:40.4]} 24... Nxd5 {[%clk 0:01:46.9]} 25. exd5 {[%clk
0:01:41.3]} 25... Bg5 {[%clk 0:01:41.9]} 26. Bxg5 {[%clk 0:01:27.7]} 26... hxg5
{[%clk 0:01:39.3]} 27. Rf2 {[%clk 0:01:21.4]} 27... Rf4 {[%clk 0:01:26.3]} 28.
Rb1 {[%clk 0:00:48.3]} 28... Bxa4 {[%clk 0:01:19.6]} 29. Qc3 {[%clk 0:00:20.4]}
29... Bb5 {[%clk 0:01:18.6]} 30. Rc2 {[%clk 0:00:14]} 30... O-O {[%clk
0:01:15.8]} 31. Qc7 {[%clk 0:00:10.2]} 31... Qf6 {[%clk 0:01:11.5]} 32. Qb6
{[%clk 0:00:03.5]} 32... e4 {[%clk 0:01:06.2]} 33. Rbc1 {[%clk 0:00:03.7]} 33...
Kg7 {[%clk 0:01:02.7]} 34. Rc8 {[%clk 0:00:03.8]} 34... Rxc8 {[%clk 0:00:59.4]}
35. Rxc8 {[%clk 0:00:04.7]} 35... Qa1+ {[%clk 0:00:56.3]} 36. Kh2 {[%clk
0:00:04.9]} 36... Qe5 {[%clk 0:00:56.9]} 37. Kg1 {[%clk 0:00:04.3]} 37... Qf6
{[%clk 0:00:43.3]} 38. Qb8 {[%clk 0:00:03.6]} 38... Kh7 {[%clk 0:00:40.4]} 39.
Rf8 {[%clk 0:00:02.9]} 39... e3 {[%clk 0:00:38.1]} 40. Qd8 {[%clk 0:00:02.2]}
0-1

[Event "Late-Titled-Tuesday-Blitz-January-30-2024"]
[Site "Chess.com"]
[Date "2024.01.30"]
[Round "4"]
[White "MKlose11"]
[Black "ArturoCaceres"]
[Result "0-1"]
[WhiteElo "2613"]
[BlackElo "2459"]
[TimeControl "180+1"]
[EndTime "14:38:35 PST"]
[Termination "ArturoCaceres won by resignation"]

1. e4 {[%clk 0:03:00.9]} 1... c5 {[%clk 0:02:56.3]} 2. Nc3 {[%clk 0:03:00.4]}
2... a6 {[%clk 0:02:53.1]} 3. d3 {[%clk 0:03:01.3]} 3... b5 {[%clk 0:02:51.3]}
4. g3 {[%clk 0:03:01.5]} 4... Bb7 {[%clk 0:02:51.7]} 5. Bg2 {[%clk 0:03:01.8]}
5... h5 {[%clk 0:02:52.5]} 6. Nh3 {[%clk 0:03:01.6]} 6... h4 {[%clk 0:02:52.7]}
7. g4 {[%clk 0:03:01.8]} 7... e6 {[%clk 0:02:50.9]} 8. O-O {[%clk 0:03:01]} 8...
Nc6 {[%clk 0:02:50.1]} 9. f4 {[%clk 0:03:00.9]} 9... Qb6 {[%clk 0:02:41]} 10. f5
{[%clk 0:02:59.8]} 10... Nd4 {[%clk 0:02:38.9]} 11. fxe6 {[%clk 0:02:51.7]}
11... dxe6 {[%clk 0:02:38.2]} 12. Be3 {[%clk 0:02:48.7]} 12... Be7 {[%clk
0:02:36.3]} 13. Ng5 {[%clk 0:02:44.4]} 13... f6 {[%clk 0:02:22.6]} 14. Nf3
{[%clk 0:02:37.4]} 14... h3 {[%clk 0:02:23]} 15. Bh1 {[%clk 0:02:35.2]} 15...
Nh6 {[%clk 0:02:22]} 16. Bxh6 {[%clk 0:02:14.2]} 16... Rxh6 {[%clk 0:02:20.5]}
17. Ne2 {[%clk 0:02:14.8]} 17... e5 {[%clk 0:01:57.5]} 18. Ng3 {[%clk
0:02:07.3]} 18... c4 {[%clk 0:01:45]} 19. Rf2 {[%clk 0:02:01.8]} 19... Nxf3+
{[%clk 0:01:40.9]} 20. Qxf3 {[%clk 0:02:02.7]} 20... Bc5 {[%clk 0:01:41]} 21.
Nf5 {[%clk 0:01:58.2]} 21... Rg6 {[%clk 0:01:35.6]} 22. Kf1 {[%clk 0:01:51.6]}
22... Bxf2 {[%clk 0:01:23.2]} 23. Qxf2 {[%clk 0:01:52.5]} 23... Qxf2+ {[%clk
0:01:23]} 24. Kxf2 {[%clk 0:01:52.5]} 24... Rd8 {[%clk 0:01:17]} 25. Rd1 {[%clk
0:01:39.9]} 25... cxd3 {[%clk 0:01:13.9]} 26. cxd3 {[%clk 0:01:40.8]} 26... Rxg4
{[%clk 0:01:07.5]} 27. Bf3 {[%clk 0:01:40.8]} 27... Rg5 {[%clk 0:01:07.6]} 28.
Ke3 {[%clk 0:01:37.1]} 28... Bc8 {[%clk 0:01:02.3]} 29. Ng3 {[%clk 0:01:30.2]}
29... Be6 {[%clk 0:00:55.4]} 30. Rc1 {[%clk 0:01:19.1]} 30... Kd7 {[%clk
0:00:52.8]} 31. a4 {[%clk 0:01:14.6]} 31... Rc8 {[%clk 0:00:46.6]} 32. Ra1
{[%clk 0:01:09.9]} 32... b4 {[%clk 0:00:46.2]} 33. Bd1 {[%clk 0:01:05.7]} 33...
a5 {[%clk 0:00:39.8]} 34. Rb1 {[%clk 0:00:57.8]} 34... g6 {[%clk 0:00:39.7]} 35.
b3 {[%clk 0:00:44.2]} 35... f5 {[%clk 0:00:39.4]} 36. exf5 {[%clk 0:00:38.6]}
36... gxf5 {[%clk 0:00:40.3]} 37. Ne2 {[%clk 0:00:38]} 37... Kd6 {[%clk
0:00:36]} 38. d4 {[%clk 0:00:38.2]} 38... f4+ {[%clk 0:00:35.2]} 39. Kf2 {[%clk
0:00:36.2]} 39... Rg2+ {[%clk 0:00:34.6]} 40. Kf1 {[%clk 0:00:34.9]} 40... Rxh2
{[%clk 0:00:30.8]} 41. dxe5+ {[%clk 0:00:35.2]} 41... Kxe5 {[%clk 0:00:31]} 42.
Ng1 {[%clk 0:00:35.9]} 42... Bd5 {[%clk 0:00:27.3]} 43. Bf3 {[%clk 0:00:35.3]}
43... Rcc2 {[%clk 0:00:24.7]} 44. Re1+ {[%clk 0:00:29.1]} 44... Kd6 {[%clk
0:00:22.2]} 45. Rd1 {[%clk 0:00:29.4]} 45... Rcd2 {[%clk 0:00:20.6]} 0-1

[Event "Late-Titled-Tuesday-Blitz-January-30-2024"]
[Site "Chess.com"]
[Date "2024.01.30"]
[Round "4"]
[White "Harsha_Bharathakoti"]
[Black "Alex_Banzea"]
[Result "0-1"]
[WhiteElo "2895"]
[BlackElo "2620"]
[TimeControl "180+1"]
[EndTime "14:38:37 PST"]
[Termination "Alex_Banzea won by checkmate"]

1. Nf3 {[%clk 0:03:00.9]} 1... Nf6 {[%clk 0:02:59.1]} 2. c4 {[%clk 0:03:01]}
2... g6 {[%clk 0:03:00]} 3. Nc3 {[%clk 0:03:01.4]} 3... Bg7 {[%clk 0:03:00.9]}
4. e4 {[%clk 0:03:01.9]} 4... d6 {[%clk 0:03:01.7]} 5. d4 {[%clk 0:03:02.6]}
5... O-O {[%clk 0:03:01.5]} 6. Be2 {[%clk 0:03:03.2]} 6... Qe8 {[%clk
0:03:01.8]} 7. Be3 {[%clk 0:03:03.3]} 7... e5 {[%clk 0:02:58.8]} 8. d5 {[%clk
0:02:38.1]} 8... Ng4 {[%clk 0:02:57.4]} 9. Bg5 {[%clk 0:02:38.1]} 9... Bh6
{[%clk 0:02:40.2]} 10. Bxh6 {[%clk 0:02:35.1]} 10... Nxh6 {[%clk 0:02:41.1]} 11.
Qd2 {[%clk 0:02:35.7]} 11... Kg7 {[%clk 0:02:37]} 12. h4 {[%clk 0:02:21.9]}
12... f6 {[%clk 0:02:32.3]} 13. O-O-O {[%clk 0:02:13.5]} 13... Ng4 {[%clk
0:02:32.1]} 14. Rdf1 {[%clk 0:02:10]} 14... h5 {[%clk 0:02:32.1]} 15. Ne1 {[%clk
0:02:10.6]} 15... a5 {[%clk 0:02:29.6]} 16. Bxg4 {[%clk 0:02:06.9]} 16... Bxg4
{[%clk 0:02:28.5]} 17. Nd3 {[%clk 0:01:46.7]} 17... Na6 {[%clk 0:02:27.1]} 18.
f3 {[%clk 0:01:47.5]} 18... Bd7 {[%clk 0:02:26.7]} 19. Kb1 {[%clk 0:01:30]}
19... Rb8 {[%clk 0:02:20.9]} 20. Qe3 {[%clk 0:01:28.8]} 20... b5 {[%clk
0:02:06.8]} 21. c5 {[%clk 0:01:28.9]} 21... b4 {[%clk 0:02:07.2]} 22. Ne2 {[%clk
0:01:29.4]} 22... Bb5 {[%clk 0:02:06.9]} 23. c6 {[%clk 0:01:15.9]} 23... a4
{[%clk 0:02:03.6]} 24. Nec1 {[%clk 0:00:58]} 24... f5 {[%clk 0:01:33.5]} 25. Qg5
{[%clk 0:00:57.9]} 25... Qd8 {[%clk 0:01:28.8]} 26. Qg3 {[%clk 0:00:46.3]} 26...
fxe4 {[%clk 0:01:20.2]} 27. fxe4 {[%clk 0:00:46.5]} 27... Qe7 {[%clk 0:01:19.2]}
28. Rf3 {[%clk 0:00:42.9]} 28... Nc5 {[%clk 0:00:55]} 29. Nxc5 {[%clk
0:00:40.9]} 29... dxc5 {[%clk 0:00:55.9]} 30. Rd1 {[%clk 0:00:35.1]} 30... Rbd8
{[%clk 0:00:52.1]} 31. Qf2 {[%clk 0:00:25.5]} 31... Rxf3 {[%clk 0:00:51.1]} 32.
gxf3 {[%clk 0:00:26.4]} 32... Rf8 {[%clk 0:00:47.2]} 33. Rg1 {[%clk 0:00:20.5]}
33... Rf4 {[%clk 0:00:47.1]} 34. Rg5 {[%clk 0:00:16.7]} 34... Kh7 {[%clk
0:00:36.4]} 35. a3 {[%clk 0:00:12.1]} 35... b3 {[%clk 0:00:34.4]} 36. Qe3 {[%clk
0:00:12.5]} 36... Rxh4 {[%clk 0:00:27.9]} 37. Qg1 {[%clk 0:00:12.6]} 37... Rh1
{[%clk 0:00:25.2]} 38. Qg3 {[%clk 0:00:09]} 38... Bd3+ {[%clk 0:00:23.5]} 39.
Ka1 {[%clk 0:00:09.7]} 39... Rxc1# {[%clk 0:00:23.8]} 0-1